fUSD/lending_fUSD_20241101
["ID","MTS","AMOUNT","RATE_DAILY","PERIOD"]
[341127307,1730433902530,300.0,0.00019725,2]
[341127308,1730434008990,159.1,0.00015342,2]
[341127309,1730434043139,-280.50325,0.00033756,2]
[341127310,1730434043159,-278.6125,0.00033961,2]
[341127311,1730434043179,-165.27,0.00036684,2]
[341127312,1730434043200,-280.50325,0.00041087,14]
[341127313,1730434043221,-278.6125,0.00041249,14]
[341127314,1730434043241,-753.38452604,0.00041249,2]
[341127315,1730434043261,-434.937297,0.00043155,2]
[341127316,1730434043280,-261.43,0.00043373,120]
[341127317,1730434043303,-619.35,0.00043896,2]
[341127318,1730434043326,-191.25,0.00043967,120]
[341127319,1730434043349,-150.8927406,0.00044523,2]
[341127320,1730434043369,-583.636,0.00044623,2]
[341127321,1730434043498,-814.673,0.00044623,2]
[341127322,1730434043520,-473.159,0.00044623,2]
[341127323,1730434043539,-1088.0,0.00044623,2]
[341127324,1730434043559,-247.2,0.00045,30]
[341127325,1730434043578,-154.84,0.00045359,2]
[341127326,1730434043599,-250.0,0.00045488,120]
[341127327,1730434043620,-22095.66330103,0.00045523,2]
[341127346,1730434231714,-398.0,0.00044,120]
[341127347,1730434231724,-19.55905087,0.00045523,2]
[341127348,1730434231768,-775.87557787,0.00045523,2]
[341127349,1730434231780,-1008.90207023,0.00045523,2]
[341127350,1730434231789,-200.0,0.00045523,2]
[341127351,1730434231798,-552.96,0.00045626,2]
[341127352,1730434231808,-159.82,0.00046088,120]
[341127353,1730434231819,-619.35,0.0004616,2]
[341127354,1730434231828,-4472.37,0.00046203,2]
[341127355,1730434231838,-158.57,0.00046213,2]
[341127356,1730434231848,-210.682,0.00046285,76]
[341127357,1730434231858,-1000.0,0.00046285,2]
[341127358,1730434231868,-7238.14095096,0.000466,7]
[341127359,1730434231879,-500.0,0.00046849,120]
[341127360,1730434231890,-500.0,0.00046849,120]
[341127361,1730434231899,-500.0,0.00046849,120]
[341127362,1730434231908,-500.0,0.00046849,120]
[341127363,1730434231917,-500.0,0.00046849,120]
[341127364,1730434231926,-500.0,0.00046849,120]
[341127365,1730434231936,-500.0,0.00046849,120]
[341127366,1730434231946,-500.0,0.00046849,120]
[341127367,1730434231955,-500.0,0.00046849,120]
[341127368,1730434231965,-411.60712892,0.00046849,120]
[341127369,1730434231975,-181.46,0.00046849,2]
[341127370,1730434231986,-150.0,0.00046849,2]
[341127371,1730434231995,-150.0,0.00046849,2]
[341127372,1730434232007,-19922.90735089,0.00046899,10]
[341127373,1730434232019,-504.1491,0.000469,2]
[341127374,1730434232029,-13394.9385,0.000469,2]
[341127375,1730434232038,-1000.0,0.000469,2]
[341127376,1730434232048,-1419.05521378,0.00046923,15]
[341127377,1730434232058,-8737.6483173,0.00046958,2]
[341127378,1730434232067,-2779.4628216,0.00046958,2]
[341127379,1730434232077,-4440.8985524,0.00046958,2]
[341127380,1730434232087,-214.37662502,0.00046961,2]
[341127381,1730434232097,-35243.67608183,0.00046962,2]
[341127382,1730434232119,-329.14260328,0.00046962,2]
[341127383,1730434232131,-300.0,0.00046962,2]
[341127390,1730434237720,-200.0,0.00046923,15]
[341127391,1730434237731,-178.64718752,0.00046961,2]
[341127392,1730434237741,-692.12915903,0.00046962,2]
[341127393,1730434237752,-358.33485164,0.00046962,2]
[341127394,1730434237763,-264.24,0.00046962,2]
[341127395,1730434237774,-3962.49825,0.00046962,2]
[341127396,1730434237991,-3266.879707,0.00046962,2]
[341127397,1730434238007,-576.7363992,0.00046962,2]
[341127398,1730434238017,-250.14,0.00046962,2]
[341127399,1730434238028,-299.26625582,0.00046962,2]
[341127400,1730434238039,-566.76354058,0.00046962,2]
[341127401,1730434238049,-1440.00000005,0.00046962,2]
[341127402,1730434238060,-43746.74400831,0.00046962,2]
[341127403,1730434238102,-4392.91305409,0.00046962,2]
[341127404,1730434238113,-1698.02186945,0.00046962,2]
[341127405,1730434238123,-4461.84790807,0.00046962,2]
[341127406,1730434238219,-5533.35431226,0.00046962,2]
[341127407,1730434238233,-1001.52077276,0.00046962,2]
[341127408,1730434238245,-680.9775586,0.00046962,2]
[341127423,1730434238425,-200.0,0.00046958,2]
[341127425,1730434238434,-9255.58307413,0.00046962,2]
[341127427,1730434238445,-783.5840292,0.00046962,2]
[341127429,1730434238456,-1301.15361802,0.00046962,2]
[341127430,1730434238467,-749.86877271,0.00046962,2]
[341127432,1730434238479,-6329.97878758,0.00046962,2]
[341127434,1730434238490,-540.65357155,0.00046962,2]
[341127453,1730434239681,-1684.11391983,0.00046962,2]
[341127454,1730434239806,-1466.28995734,0.00046962,2]
[341127455,1730434239841,-10657.5,0.00046962,2]
[341127456,1730434239896,-346.888492,0.00046962,2]
[341127457,1730434239907,-3859.53076046,0.00046962,2]
[341127458,1730434239950,-367.53519642,0.00046962,2]
[341127459,1730434240004,-442.35821486,0.00046962,2]
[341127460,1730434240014,-334.34473846,0.00046962,2]
[341127461,1730434240060,-4276.48182047,0.00046962,2]
[341127462,1730434240113,-2500.0,0.00046962,2]
[341127463,1730434240127,-925.11381278,0.00046962,2]
[341127467,1730434240711,228.0,0.000304,2]
[341127468,1730434242685,-13287.10741547,0.00046962,2]
[341127469,1730434242694,-200.0,0.00046962,2]
[341127470,1730434242704,-151273.16716077,0.00046969,2]
[341127471,1730434242825,-2616.92516254,0.00046969,2]
[341127472,1730434243036,216.669,0.00032226,2]
[341127473,1730434243055,-377.11693109,0.00046969,2]
[341127474,1730434243112,-113940.46114214,0.00046969,2]
[341127476,1730434243355,216.669,0.00039882,2]
[341127477,1730434245887,-3614.15,0.00046969,2]
[341127478,1730434245900,-314.46369416,0.00046969,2]
[341127479,1730434245942,-12436.19730973,0.00046969,2]
[341127480,1730434245954,-351.67166116,0.00046969,2]
[341127481,1730434245967,-778.99897426,0.00046969,2]
[341127485,1730434279007,550.0,0.00015,2]
[341127486,1730434280068,600.0,0.00017,2]
[341127487,1730434281142,650.0,0.00019,2]
[341127488,1730434302140,153.0,0.00035616,2]
[341127489,1730434302499,153.0,0.00035616,2]
[341127490,1730434302738,153.0,0.00035616,2]
[341127491,1730434302988,153.0,0.00035616,2]
[341127492,1730434303209,153.0,0.00035616,2]
[341127493,1730434304315,153.0,0.00035616,2]
[341127494,1730434304520,153.0,0.00035616,2]
[341127495,1730434304743,153.0,0.00035616,2]
[341127496,1730434304940,153.0,0.00035616,2]
[341127497,1730434305157,153.0,0.00035616,2]
[341127498,1730434305503,153.0,0.00035616,2]
[341127499,1730434305711,153.0,0.00035616,2]
[341127500,1730434305938,153.0,0.00035616,2]
[341127501,1730434306149,153.0,0.00035616,2]
[341127502,1730434306352,153.0,0.00035616,2]
[341127503,1730434307208,153.0,0.00035616,2]
[341127504,1730434307415,153.0,0.00035616,2]
[341127505,1730434307744,153.0,0.00035616,2]
[341127506,1730434307954,153.0,0.00035616,2]
[341127507,1730434308272,153.0,0.00035616,2]
[341127508,1730434308503,153.0,0.00035616,2]
[341127509,1730434308730,153.0,0.00035616,2]
[341127510,1730434309508,153.0,0.00035616,2]
[341127511,1730434321329,300.0,0.00019725,2]
[341127512,1730434322136,300.0,0.00021484,2]
[341127513,1730434334054,151.0,0.0003,120]
[341127514,1730434350556,198.427,0.00033329,2]
[341127515,1730434353725,280.503,0.00033386,2]
[341127516,1730434649843,157.48,0.00015342,2]
[341127519,1730435108060,48025.96,0.00016,2]
[341127520,1730435108085,4324.0,0.00016,2]
[341127521,1730435108116,138873.85394059,0.00016,2]
[341127523,1730435120001,653.89390798,9e-05,2]
[341127524,1730435179285,158.03,0.00015342,2]
[341127525,1730435191893,1026.47629136,0.00015,2]
[341127526,1730435226104,-695.36113924,0.00024875,2]
[341127527,1730435230107,-337.67803238,0.00024875,2]
[341127528,1730435247090,-90.13780538,0.00024875,2]
[341127529,1730435247110,-500.0,0.00024973,2]
[341127530,1730435247131,-251.9663311,0.00024973,2]
[341127531,1730435247151,-4036.25163489,0.00025,2]
[341127532,1730435284112,118563.13253771,0.00015,2]
[341127533,1730435293298,10455.53382007,0.0002,2]
[341127547,1730435345083,-401.08429354,0.0002421,2]
[341127548,1730435345105,-776.4858413,0.0002425,2]
[341127549,1730435345126,-14492.22968197,0.00025,2]
[341127550,1730435345146,-397.09700734,0.00025,2]
[341127551,1730435345165,-679.99393091,0.000253,5]
[341127552,1730435345185,-4433.65,0.00026,2]
[341127553,1730435345204,-517.68970848,0.0002604,2]
[341127554,1730435345224,-206.63186436,0.0002736,120]
[341127555,1730435345243,-4276.09299355,0.000275,2]
[341127556,1730435345263,-515.29495992,0.00028333,2]
[341127557,1730435345285,-157.48,0.00028858,2]
[341127558,1730435345304,-2429.38609863,0.0003,15]
[341127559,1730435348190,-23850.48025701,0.0003,15]
[341127560,1730435348215,-322.80305195,0.00031,5]
[341127561,1730435348234,-164.5505,0.00032973,2]
[341127562,1730435348253,-24366.02485019,0.00033,2]
[341127563,1730435348271,-209.22,0.00036769,2]
[341127564,1730435348290,-171.84,0.00037312,2]
[341127565,1730435348310,-171.84,0.0003941,2]
[341127566,1730435348329,-1300.0,0.00039999,4]
[341127567,1730435348347,-491.0,0.00039999,4]
[341127568,1730435348367,-500.0,0.00039999,31]
[341127569,1730435348387,-496.22081513,0.00039999,31]
[341127570,1730435348405,-13087.18300861,0.0004,2]
[341127571,1730435348424,-3801.73910802,0.0004,4]
[341127572,1730435350081,-4751.50189814,0.0004,4]
[341127573,1730435350104,-164.5505,0.0004047,14]
[341127574,1730435350127,-973.21457986,0.0004079,2]
[341127575,1730435352084,-33953.12006064,0.0004079,2]
[341127576,1730435352105,-280.503,0.00040796,14]
[341127577,1730435352124,-171.84,0.00041509,2]
[341127578,1730435352145,-501.14,0.00042,15]
[341127579,1730435352165,-11248.7685298,0.00042,2]
[341127580,1730435352185,-112273.5580577,0.00042,30]
[341127581,1730435354112,-23481.783808,0.00042,30]
[341127582,1730435357086,-2982.24094,0.00042,30]
[341127583,1730435359100,-5073.87235119,0.00042,30]
[341127584,1730435371089,-3552.81367664,0.00042,30]
[341127585,1730435382586,500.0,0.00040773,5]
[341127586,1730435408389,1000.0,0.00044844,120]
[341127587,1730435408961,209.22,0.00035378,2]
[341127588,1730435416536,1000.0,0.00044844,120]
[341127595,1730435431897,-418.03454,0.00042,30]
[341127597,1730435431908,-426.004,0.00042,30]
[341127598,1730435431956,-1000.27316546,0.00042,30]
[341127599,1730435432068,-2632.11844528,0.00042,30]
[341127600,1730435432179,-6478.02810623,0.00042,30]
[341127606,1730435437979,-443.81585153,0.00042,30]
[341127607,1730435438089,-905.43395162,0.00042,30]
[341127608,1730435438255,-567.83491177,0.00042,30]
[341127609,1730435438316,-775.62595996,0.00042,30]
[341127610,1730435438406,-697.22222227,0.00042,30]
[341127611,1730435438418,-460.34226282,0.00042,30]
[341127612,1730435438430,-7398.75665457,0.00042,30]
[341127633,1730435439964,-571.72170112,0.00042,30]
[341127634,1730435439976,-33032.40933508,0.00042,30]
[341127635,1730435440062,-4854.5,0.00042,30]
[341127636,1730435440075,-644.44697796,0.00042,30]
[341127637,1730435440120,-19115.59000086,0.00042,30]
[341127638,1730435440129,-1104.04201781,0.00042142,10]
[341127639,1730435440139,-157.48,0.00042374,2]
[341127640,1730435440149,-500.0,0.000425,15]
[341127641,1730435440159,-500.0,0.000425,15]
[341127642,1730435440170,-15483.06792686,0.000425,2]
[341127643,1730435440180,-152.0,0.0004329,3]
[341127644,1730435440189,-619.03,0.00043338,2]
[341127645,1730435440199,-154.84,0.00043771,2]
[341127646,1730435440208,-202.64,0.00043955,120]
[341127647,1730435440218,-356.12,0.00043955,2]
[341127648,1730435440228,-250.0,0.00044378,2]
[341127649,1730435440237,-477.04,0.00044616,2]
[341127650,1730435440248,-150.0,0.00044798,7]
[341127651,1730435440258,-9746.19,0.00044798,2]
[341127652,1730435440267,-484.01,0.00044822,14]
[341127653,1730435440276,-373.78,0.00044834,10]
[341127654,1730435440287,-250.0,0.0004484,120]
[341127655,1730435440297,-34662.92661112,0.00044844,4]
[341127656,1730435440306,-262.3782379,0.00044844,7]
[341127657,1730435440315,-2017.24934459,0.00044844,5]
[341127658,1730435440325,-1000.0,0.00044844,2]
[341127659,1730435440335,-1000.0,0.00044844,2]
[341127660,1730435440345,-1000.0,0.00044844,2]
[341127661,1730435440354,-151.0,0.00045224,14]
[341127662,1730435440363,-151.0,0.00045224,14]
[341127663,1730435440374,-151.0,0.00045224,14]
[341127664,1730435440384,-151.0,0.00045224,14]
[341127665,1730435440393,-151.0,0.00045224,14]
[341127666,1730435440403,-151.0,0.00045224,14]
[341127668,1730435440412,-157.310624,0.00045224,14]
[341127670,1730435440423,-151.0,0.00045224,14]
[341127672,1730435440432,-23900.0,0.00045224,2]
[341127674,1730435440442,-1143.0,0.00045457,30]
[341127676,1730435440451,-619.03,0.00045602,2]
[341127679,1730435440462,-168.546,0.00046092,76]
[341127681,1730435440472,-629.0,0.00046187,2]
[341127683,1730435440481,-151.613,0.00046187,2]
[341127685,1730435440491,-1088.0,0.00046187,2]
[341127687,1730435440500,-562.356,0.00046187,2]
[341127688,1730435440510,-222.6,0.00046213,120]
[341127691,1730435440520,-1000.0,0.00046225,2]
[341127693,1730435440530,-293.6805,0.0004678,2]
[341127695,1730435440540,-16467.555,0.0004678,2]
[341127697,1730435440550,-185.11559195,0.00046879,120]
[341127699,1730435440559,-116131.88875458,0.0004688,2]
[341127701,1730435440568,-14945.55611816,0.0004688,2]
[341127703,1730435440578,-187.365575,0.0004688,14]
[341127705,1730435440587,-151.0,0.0004688,14]
[341127707,1730435440596,-151.0,0.0004688,14]
[341127709,1730435440606,-151.0,0.0004688,14]
[341127710,1730435440616,-159.783948,0.0004688,14]
[341127712,1730435440627,-151.0,0.0004688,14]
[341127715,1730435440637,-160.825676,0.0004688,14]
[341127717,1730435440647,-712.07060565,0.00046921,2]
[341127719,1730435440658,-939.0,0.0004693,30]
[341127721,1730435440668,-712.07060565,0.00046955,2]
[341127723,1730435440677,-8469.1350694,0.00046966,2]
[341127725,1730435440687,-2861.461016,0.00046966,2]
[341127726,1730435440696,-150.01,0.00046968,2]
[341127727,1730435440705,-1665.29057647,0.00046969,2]
[341127728,1730435440717,-429.15446819,0.00046969,2]
[341127729,1730435440727,-363.97548304,0.00046969,2]
[341127730,1730435440739,-388.8658327,0.00046969,2]
[341127731,1730435440765,-632.84799128,0.00046969,2]
[341127733,1730435443010,-311.48,0.00044834,10]
[341127734,1730435443020,-706.087,0.00046187,2]
[341127735,1730435443030,-37578.74909722,0.00046969,2]
[341127736,1730435446105,-2757.70447448,0.00046969,2]
[341127737,1730435446115,-200.0,0.00046969,2]
[341127738,1730435446124,-527.63365052,0.00046969,7]
[341127740,1730435506503,153.0,0.00035616,2]
[341127743,1730435795364,10000.0,0.00044837,120]
[341127745,1730435864832,10000.0,0.00044837,120]
[341127746,1730435894916,156.75,0.00015342,2]
[341127753,1730436083562,550.0,0.00015,2]
[341127754,1730436084652,600.0,0.00017,2]
[341127755,1730436085755,650.0,0.00019,2]
[341127756,1730436334137,-431.47377502,0.00021,2]
[341127757,1730436427332,-268.52622498,0.00021,2]
[341127758,1730436427352,-593.98153049,0.0002205,2]
[341127759,1730436440093,-2715.22378182,0.0002205,2]
[341127760,1730436441106,-730.72788784,0.0002205,2]
[341127761,1730436441127,-154.77,0.0002225,2]
[341127762,1730436441149,-151.0,0.0003,120]
[341127763,1730436441172,-150.99,0.0003,2]
[341127764,1730436441192,-999.99,0.0003,2]
[341127765,1730436441212,-275.0,0.000308,2]
[341127766,1730436441319,-53.94303139,0.00030877,2]
[341127767,1730436535739,157.46,0.00015342,2]
[341127768,1730436547251,-165.87749116,0.00030777,2]
[341127769,1730436547272,-96.05696861,0.00030877,2]
[341127770,1730436547390,-367.45,0.00030877,2]
[341127771,1730436547410,-822.43,0.00030877,2]
[341127772,1730436547431,-16084.18338768,0.00030899,2]
[341127773,1730436547451,-908.0,0.00030899,2]
[341127774,1730436547471,-912.0,0.000309,2]
[341127775,1730436547491,-500.0,0.000312,30]
[341127776,1730436547511,-500.0,0.000312,30]
[341127777,1730436547532,-647.04400413,0.000312,30]
[341127778,1730436547554,-500.0,0.000312,30]
[341127779,1730436547577,-500.0,0.000312,30]
[341127780,1730436547597,-500.0,0.000312,30]
[341127781,1730436547617,-513.59884177,0.000312,30]
[341127782,1730436547636,-500.0,0.000312,30]
[341127783,1730436547656,-503.03219703,0.000312,30]
[341127784,1730436547675,-2766.794107,0.00033286,2]
[341127785,1730436547695,-946.32875,0.00033454,2]
[341127786,1730436547714,-2735.87,0.00033454,2]
[341127787,1730436547733,-4115.09,0.00034548,2]
[341127788,1730436547752,-150.0,0.00034548,10]
[341127789,1730436547773,-153.0,0.00035616,2]
[341127790,1730436547794,-153.0,0.00035616,2]
[341127791,1730436547815,-153.0,0.00035616,2]
[341127792,1730436547835,-153.0,0.00035616,2]
[341127793,1730436547855,-153.0,0.00035616,2]
[341127794,1730436547874,-153.0,0.00035616,2]
[341127795,1730436547894,-210.078,0.00036768,46]
[341127796,1730436547914,-160.92,0.00037168,2]
[341127797,1730436547934,-160.0077111,0.00037475,5]
[341127798,1730436547956,-500.0,0.0003795,2]
[341127799,1730436547976,-205.33035703,0.0003795,5]
[341127800,1730436547996,-290.1382,0.00039888,7]
[341127801,1730436548016,-770.14,0.00040332,2]
[341127802,1730436548037,-241.85,0.0004065,2]
[341127803,1730436548057,-946.32875,0.00040849,14]
[341127804,1730436548077,-162.17,0.00041031,2]
[341127805,1730436548097,-2343.15,0.00041063,2]
[341127806,1730436548116,-300.0,0.00041083,2]
[341127807,1730436548136,-300.0,0.0004115,2]
[341127808,1730436548157,-170.094,0.0004115,2]
[341127809,1730436548176,-170.094,0.0004115,2]
[341127810,1730436548196,-150.0,0.00041197,2]
[341127811,1730436548217,-241.85,0.00041303,2]
[341127812,1730436548236,-943.02,0.00041432,2]
[341127813,1730436548257,-803.23,0.00041436,2]
[341127814,1730436548277,-250.0,0.00041485,2]
[341127815,1730436548298,-2384.29,0.00041515,120]
[341127816,1730436548319,-500.0,0.00041548,10]
[341127817,1730436548339,-500.0,0.00041548,10]
[341127818,1730436548359,-500.0,0.00041548,10]
[341127819,1730436548380,-500.0,0.00041548,10]
[341127820,1730436548400,-500.0,0.00041548,10]
[341127821,1730436548420,-500.0,0.00041548,10]
[341127822,1730436548443,-500.0,0.00041548,10]
[341127823,1730436548463,-500.0,0.00041548,10]
[341127824,1730436548482,-500.0,0.00041548,10]
[341127825,1730436548501,-512.35531022,0.00041548,10]
[341127826,1730436548521,-502.9463752,0.00041548,10]
[341127827,1730436548542,-437.43014595,0.00041548,10]
[341127828,1730436548631,-62.56985405,0.00041548,10]
[341127829,1730436548651,-250.0,0.00041567,120]
[341127830,1730436548670,-2375.79,0.00041579,2]
[341127831,1730436548690,-10934.56,0.00041654,2]
[341127832,1730436548709,-150.0,0.00041834,2]
[341127833,1730436548729,-373.85,0.00041856,2]
[341127834,1730436548748,-405.34,0.00041894,2]
[341127835,1730436548768,-150.0,0.0004192,2]
[341127836,1730436548789,-241.85,0.00041956,2]
[341127837,1730436548896,-250.0,0.00042015,2]
[341127838,1730436548916,-4944.52,0.00042024,2]
[341127839,1730436548936,-200.0,0.00042031,2]
[341127840,1730436548955,-150.0,0.0004204,2]
[341127841,1730436548975,-1000.0,0.00042053,2]
[341127842,1730436548995,-453.6979131,0.00042071,120]
[341127843,1730436551294,-466.2820869,0.00042071,120]
[341127844,1730436551314,-360.84,0.00042072,2]
[341127845,1730436551333,-165.26,0.0004212,2]
[341127846,1730436551352,-20453.47,0.00042167,2]
[341127847,1730436551371,-500.0,0.00042194,2]
[341127848,1730436551390,-200.0,0.00042194,2]
[341127849,1730436551410,-150.0,0.00042194,7]
[341127850,1730436551430,-300.0,0.0004225,2]
[341127851,1730436581086,150.0,0.00041576,2]
[341127852,1730436584709,150.0,0.00041227,2]
[341127858,1730436593066,150.0,0.00041536,2]
[341127859,1730436596608,150.0,0.00041662,2]
[341127860,1730436611388,150.0,0.00041785,2]
[341127861,1730436628837,150.0,0.000412,2]
[341127873,1730436632011,-201.51332292,0.0004251,120]
[341127874,1730436632021,-205.26519723,0.00042596,2]
[341127875,1730436632032,-418.54628,0.00042596,2]
[341127876,1730436632044,-146.32852277,0.00042596,2]
[341127877,1730436632054,-104.60147723,0.0004261,2]
[341127878,1730436632066,-137.24852277,0.0004261,2]
[341127879,1730436632077,-241.85,0.00043263,2]
[341127880,1730436632087,-170.23,0.0004341,2]
[341127881,1730436632097,-108.92147723,0.00043774,14]
[341127882,1730436632120,-51.99852277,0.00043774,14]
[341127883,1730436632129,-51.60151667,0.00043916,2]
[341127884,1730436632152,-190.24848333,0.00043916,2]
[341127885,1730436632161,-151.81,0.00044268,120]
[341127886,1730436632171,-143.23160627,0.00044569,2]
[341127887,1730436632182,-98.61839373,0.00044569,2]
[341127888,1730436632191,-652.0,0.00044839,2]
[341127889,1730436632201,-770.14,0.00044859,2]
[341127890,1730436632210,-241.85,0.00045222,2]
[341127891,1730436632220,-162.96,0.00045354,2]
[341127892,1730436632230,-3300.0,0.000455,120]
[341127893,1730436632239,-180.0,0.00045519,120]
[341127894,1730436632249,-624.56,0.00045536,2]
[341127895,1730436632258,-44.87160627,0.00045635,120]
[341127896,1730436632270,-115.07839373,0.00045635,120]
[341127897,1730436632279,-584.92160627,0.00045688,2]
[341127898,1730436632291,-47.82839373,0.00045688,2]
[341127899,1730436632300,-250.0,0.00045688,120]
[341127900,1730436632310,-222.86254627,0.00045695,2]
[341127901,1730436632332,-1312.87745373,0.00045695,2]
[341127902,1730436632343,-151.81,0.00046015,120]
[341127903,1730436632353,-214.96,0.00046257,120]
[341127904,1730436632363,-429.78995982,0.00046295,2]
[341127905,1730436632379,-455.91097333,0.00046295,2]
[341127906,1730436632389,-357.10513702,0.00046762,2]
[341127907,1730436632398,-1202.4042,0.00046869,2]
[341127908,1730436632411,-793.5124,0.000469,2]
[341127909,1730436632422,-2354.10158621,0.000469,30]
[341127910,1730436632431,-12363.33112652,0.00046929,2]
[341127911,1730436632443,-570.09,0.00046929,2]
[341127912,1730436632454,-3327.96126539,0.00046929,2]
[341127913,1730436632465,-1552.423596,0.00046929,2]
[341127915,1730436632476,-641.77407903,0.00046929,2]
[341127917,1730436632488,-725.02963726,0.00046929,2]
[341127927,1730436638218,-200.0,0.00046762,2]
[341127928,1730436638227,-1113.80063814,0.00046929,2]
[341127929,1730436638239,-1345.48638074,0.00046929,2]
[341127930,1730436638251,-695.44853,0.00046929,2]
[341127931,1730436638262,-464.49215407,0.00046929,2]
[341127932,1730436638273,-3747.13547401,0.00046929,2]
[341127933,1730436638421,-7235.7744067,0.00046929,2]
[341127934,1730436638439,-592.08569065,0.00046929,2]
[341127939,1730436638588,-279.60232345,0.00046929,2]
[341127940,1730436638613,-3256.0537303,0.00046929,2]
[341127946,1730436640522,-200.0,0.00046929,2]
[341127947,1730436640534,-101.69153131,0.00046929,2]
[341127948,1730436640552,-454.25675803,0.00046929,2]
[341127949,1730436640656,-376.68,0.00046929,2]
[341127950,1730436640683,150.0,0.00041854,2]
[341127951,1730436642844,251.23141501,0.000411,2]
[341127952,1730436643049,-129.32161777,0.00046929,2]
[341127956,1730436644882,150.0,0.00041179,2]
[341127957,1730436646084,-1301.37556257,0.00046929,2]
[341127958,1730436646252,-182312.21197392,0.00046929,2]
[341127959,1730436646311,-142.3752153,0.00046929,2]
[341127960,1730436646470,-2850.81574938,0.00046929,2]
[341127961,1730436650626,150.0,0.000419,2]
[341127962,1730436659041,150.0,0.00041318,2]
[341127963,1730436661903,374.0,0.000231,30]
[341127968,1730436668565,150.0,0.00041751,2]
[341127969,1730436688866,150.0,0.00041973,2]
[341127970,1730436701072,150.0,0.00041827,2]
[341127971,1730436702413,153.0,0.00035616,2]
[341127972,1730436702619,153.0,0.00035616,2]
[341127973,1730436705248,150.0,0.00041903,2]
[341127974,1730436714338,150.0,0.00041533,2]
[341127975,1730436716983,150.0,0.00041648,2]
[341127976,1730436729305,150.0,0.00041957,2]
[341127977,1730436739633,187.086,0.00036853,2]
[341127978,1730436748712,150.0,0.00041439,2]
[341127980,1730437292895,156.81,0.00015342,2]
[341127981,1730437557110,-156.0,0.00023215,2]
[341127982,1730437557134,-262.0,0.000306,2]
[341127983,1730437557154,-28.30494383,0.00034353,2]
[341127984,1730437646110,-136.97505617,0.00034353,2]
[341127985,1730437646131,-522.09060439,0.00035516,2]
[341127986,1730437652097,-2893.13682285,0.00035516,2]
[341127987,1730437730585,50014.0,0.0001726,10]
[341127989,1730437745097,-170.65847276,0.00035516,2]
[341127990,1730437745117,-153.0,0.00035616,2]
[341127991,1730437745137,-153.0,0.00035616,2]
[341127992,1730437745158,-153.0,0.00035616,2]
[341127993,1730437745177,-21832.50623522,0.00035616,2]
[341127994,1730437745197,-241.511705,0.00039102,2]
[341127995,1730437745217,-190.10925,0.00039299,2]
[341127996,1730437745238,-277.951,0.00039387,2]
[341127997,1730437745261,-784.67,0.00040905,2]
[341127998,1730437745279,-482.0,0.000411,2]
[341127999,1730437745297,-150.99,0.000411,2]
[341128000,1730437745316,-831.26,0.000411,2]
[341128001,1730437745335,-6773.94,0.000411,2]
[341128002,1730437745354,-9999.99,0.000411,2]
[341128003,1730437745373,-1729.75624563,0.000411,2]
[341128004,1730437757105,-151.81,0.00040764,2]
[341128005,1730437757124,-2420.85375437,0.000411,2]
[341128006,1730437757143,-1282.15,0.000411,2]
[341128007,1730437757163,-5139.79,0.000411,2]
[341128008,1730437757182,-150.99,0.000411,30]